fUST/lending_fUST_20240923
["ID","MTS","AMOUNT","RATE_DAILY","PERIOD"]
[338890048,1727020810949,1004.2158628,0.00025,120]
[338890054,1727021237159,-485.0859721,0.00019156,2]
[338890055,1727021246166,-268.7040266,0.00019156,2]
[338890057,1727021346114,-162.514788,0.00018642,2]
[338890058,1727021346135,-162.514788,0.00018781,2]
[338890059,1727021346157,-162.514788,0.00018919,2]
[338890060,1727021346178,-162.514788,0.00019058,2]
[338890061,1727021346198,-1249.57931774,0.00019156,2]
[338890062,1727021346220,-162.514788,0.00019197,2]
[338890063,1727021346241,-162.514788,0.00019336,2]
[338890064,1727021346261,-155.17923303,0.0001939,2]
[338890065,1727021346281,-155.17923288,0.00019424,2]
[338890066,1727021346302,-155.17923288,0.00019458,2]
[338890067,1727021346322,-162.514788,0.00019475,2]
[338890068,1727021346342,-155.17923288,0.00019492,2]
[338890069,1727021346362,-300.0,0.00019499,2]
[338890070,1727021346382,-300.0,0.00019499,2]
[338890071,1727021346402,-8741.0,0.000195,2]
[338890072,1727021346431,-155.17923288,0.00019526,2]
[338890073,1727021346452,-155.17923288,0.0001956,2]
[338890074,1727021346472,-1479.15722977,0.0001958,2]
[338890075,1727021353187,-23420.84277023,0.0001958,2]
[338890076,1727021353209,-200.0,0.0001959,2]
[338890077,1727021353229,-155.17923288,0.00019594,2]
[338890078,1727021353250,-307.57718772,0.000196,2]
[338890079,1727021353271,-162.514788,0.00019613,2]
[338890080,1727021353291,-155.17923288,0.00019628,2]
[338890081,1727021353312,-8712.4789824,0.00019628,2]
[338890082,1727021353333,-155.17923288,0.00019662,2]
[338890083,1727021353354,-155.17923288,0.00019696,2]
[338890084,1727021353376,-155.17923288,0.0001973,2]
[338890085,1727021353396,-155.17923288,0.00019764,2]
[338890086,1727021353420,-155.17923288,0.00019798,2]
[338890087,1727021353441,-155.17923288,0.00019832,2]
[338890088,1727021353460,-155.17923288,0.00019866,2]
[338890089,1727021353482,-155.17923288,0.000199,2]
[338890090,1727021358443,230.62112798,0.000196,2]
[338890091,1727021365244,501.0,0.000196,2]
[338890092,1727021366092,500.65185383,0.000196,2]
[338890093,1727021370118,-1000.0,0.0002,2]
[338890094,1727021370176,-299.26588098,0.000209,2]
[338890095,1727021370197,-153.0,0.00020941,2]
[338890096,1727021370217,-8520.84068,0.00021,2]
[338890097,1727021370238,-3000.0,0.00021,2]
[338890098,1727021370258,-210.586675,0.00021078,2]
[338890099,1727021370278,-153.0,0.00021078,2]
[338890100,1727021370299,-153.0,0.00021178,2]
[338890101,1727021370320,-420.0,0.00021243,2]
[338890102,1727021370340,-299.26588096,0.00021287,2]
[338890103,1727021370360,-153.0,0.00021288,2]
[338890104,1727021370384,-153.0,0.00021288,2]
[338890105,1727021370404,-153.9401816,0.00021288,2]
[338890106,1727021370425,-153.0,0.00021288,2]
[338890107,1727021370446,-153.0,0.00021288,2]
[338890108,1727021370586,-153.0,0.00021288,2]
[338890109,1727021370606,-153.0,0.00021288,2]
[338890110,1727021370626,-153.0,0.00021288,2]
[338890111,1727021370646,-153.0,0.00021288,2]
[338890112,1727021370666,-153.0,0.00021288,2]
[338890113,1727021370690,-153.0,0.00021288,2]
[338890114,1727021370710,-153.0,0.00021288,2]
[338890115,1727021370730,-153.0,0.00021288,2]
[338890116,1727021371124,-153.0,0.00021452,2]
[338890117,1727021371145,-153.0,0.00021452,2]
[338890118,1727021371167,-153.0,0.00021452,2]
[338890119,1727021371191,-252.4075247,0.00021452,2]
[338890120,1727021383082,500.0,0.000196,2]
[338890121,1727021383132,1000.0,0.00020148,2]
[338890154,1727021431756,-153.0,0.0002156,2]
[338890156,1727021431765,-140.56680005,0.0002156,2]
[338890158,1727021431778,-12.43319995,0.0002156,2]
[338890160,1727021431787,-783.26209852,0.00021653,2]
[338890162,1727021431798,-636.53625817,0.00021653,2]
[338890165,1727021431810,-591.61754313,0.00021653,2]
[338890167,1727021431819,-299.26588096,0.00021653,2]
[338890169,1727021431829,-306.343668,0.0002166,2]
[338890171,1727021431838,-153.0,0.0002166,2]
[338890173,1727021431848,-897.78794269,0.00021673,2]
[338890175,1727021431857,-77.09598173,0.00021676,2]
[338890203,1727021438015,-820.69196094,0.00021676,2]
[338890204,1727021438026,-897.78794267,0.00021679,2]
[338890205,1727021438039,-897.78794267,0.00021681,2]
[338890206,1727021438049,-897.78794267,0.00021684,2]
[338890207,1727021438059,-1000.0,0.0002175,2]
[338890208,1727021438069,-1000.0,0.0002175,2]
[338890209,1727021438078,-1006.64171832,0.0002175,2]
[338890210,1727021438088,-500.0,0.0002175,2]
[338890211,1727021438098,-500.0,0.0002175,2]
[338890212,1727021438109,-500.0,0.0002175,2]
[338890213,1727021438128,-500.0,0.0002175,2]
[338890214,1727021438138,-195.0393177,0.0002175,2]
[338890215,1727021438148,-500.0,0.0002175,2]
[338890216,1727021438158,-500.0,0.0002175,2]
[338890217,1727021438168,-385.00777646,0.0002175,2]
[338890218,1727021438178,-500.0,0.0002175,2]
[338890219,1727021438187,-500.0,0.0002175,2]
[338890220,1727021438197,-315.63904367,0.0002175,2]
[338890221,1727021438207,-500.0,0.0002175,2]
[338890222,1727021438217,-500.0,0.0002175,2]
[338890223,1727021438226,-500.0,0.0002175,2]
[338890224,1727021438241,-500.0,0.0002175,2]
[338890225,1727021438254,-500.0,0.0002175,2]
[338890226,1727021438263,-500.0,0.0002175,2]
[338890227,1727021438273,-500.0,0.0002175,2]
[338890228,1727021438282,-500.0,0.0002175,2]
[338890229,1727021438291,-500.0,0.0002175,2]
[338890230,1727021438301,-500.0,0.0002175,2]
[338890231,1727021438310,-500.0,0.0002175,2]
[338890232,1727021438320,-500.0,0.0002175,2]
[338890233,1727021438329,-500.0,0.0002175,2]
[338890234,1727021438339,-205.97190311,0.0002175,2]
[338890235,1727021438348,-500.0,0.0002175,2]
[338890236,1727021438358,-500.0,0.0002175,2]
[338890237,1727021438368,-500.0,0.0002175,2]
[338890238,1727021438377,-500.0,0.0002175,2]
[338890239,1727021438386,-500.0,0.0002175,2]
[338890240,1727021438396,-500.0,0.0002175,2]
[338890241,1727021438404,-500.0,0.0002175,2]
[338890242,1727021438414,-500.0,0.0002175,2]
[338890243,1727021438423,-500.0,0.0002175,2]
[338890244,1727021438432,-500.0,0.0002175,2]
[338890245,1727021438441,-500.0,0.0002175,2]
[338890246,1727021438451,-500.0,0.0002175,2]
[338890247,1727021438461,-500.0,0.0002175,2]
[338890248,1727021438473,-500.0,0.0002175,2]
[338890249,1727021438493,-500.0,0.0002175,2]
[338890250,1727021438510,-500.0,0.0002175,2]
[338890251,1727021438524,-500.0,0.0002175,2]
[338890252,1727021438536,-500.0,0.0002175,2]
[338890253,1727021438548,-500.0,0.0002175,2]
[338890254,1727021438562,-500.0,0.0002175,2]
[338890255,1727021438574,-500.0,0.0002175,2]
[338890256,1727021438587,-500.0,0.0002175,2]
[338890257,1727021438601,-647.51436064,0.0002175,2]
[338890258,1727021438613,-500.0,0.0002175,2]
[338890259,1727021438627,-500.0,0.0002175,2]
[338890260,1727021438639,-500.0,0.0002175,2]
[338890261,1727021438653,-500.0,0.0002175,2]
[338890262,1727021438666,-500.0,0.0002175,2]
[338890263,1727021438677,-500.0,0.0002175,2]
[338890264,1727021438689,-500.0,0.0002175,2]
[338890265,1727021438701,-484.36244958,0.0002175,2]
[338890266,1727021438716,-500.0,0.0002175,2]
[338890267,1727021438728,-500.0,0.0002175,2]
[338890268,1727021438750,-500.0,0.0002175,2]
[338890269,1727021438761,-500.0,0.0002175,2]
[338890270,1727021438774,-500.0,0.0002175,2]
[338890271,1727021438786,-500.0,0.0002175,2]
[338890272,1727021438797,-500.0,0.0002175,2]
[338890273,1727021438810,-500.0,0.0002175,2]
[338890274,1727021438823,-500.0,0.0002175,2]
[338890275,1727021438835,-500.0,0.0002175,2]
[338890276,1727021438848,-500.0,0.0002175,2]
[338890277,1727021438859,-500.0,0.0002175,2]
[338890278,1727021438871,-500.0,0.0002175,2]
[338890279,1727021438884,-500.0,0.0002175,2]
[338890280,1727021438899,-500.0,0.0002175,2]
[338890281,1727021438913,-500.0,0.0002175,2]
[338890282,1727021438925,-500.0,0.0002175,2]
[338890283,1727021438935,-500.0,0.0002175,2]
[338890284,1727021438946,-500.0,0.0002175,2]
[338890285,1727021438957,-500.0,0.0002175,2]
[338890286,1727021438969,-500.0,0.0002175,2]
[338890287,1727021438982,-500.0,0.0002175,2]
[338890288,1727021439000,-500.0,0.0002175,2]
[338890289,1727021439011,-500.0,0.0002175,2]
[338890290,1727021439021,-500.0,0.0002175,2]
[338890291,1727021439033,-500.0,0.0002175,2]
[338890292,1727021439045,-500.0,0.0002175,2]
[338890293,1727021439058,-500.0,0.0002175,2]
[338890294,1727021439069,-500.0,0.0002175,2]
[338890295,1727021439080,-14.63821423,0.0002175,2]
[338890296,1727021439400,-485.36178577,0.0002175,2]
[338890297,1727021439412,-500.0,0.0002175,2]
[338890298,1727021439425,-500.0,0.0002175,2]
[338890299,1727021439438,-500.0,0.0002175,2]
[338890300,1727021439449,-500.0,0.0002175,2]
[338890301,1727021439460,-500.0,0.0002175,2]
[338890302,1727021439474,-500.0,0.0002175,2]
[338890304,1727021439486,-500.0,0.0002175,2]
[338890305,1727021439498,-500.0,0.0002175,2]
[338890306,1727021439509,-500.0,0.0002175,2]
[338890307,1727021439520,-500.0,0.0002175,2]
[338890308,1727021439531,-500.0,0.0002175,2]
[338890310,1727021439542,-500.0,0.0002175,2]
[338890312,1727021439553,-500.0,0.0002175,2]
[338890314,1727021439565,-500.0,0.0002175,2]
[338890316,1727021439577,-500.0,0.0002175,2]
[338890317,1727021439588,-500.0,0.0002175,2]
[338890318,1727021439599,-500.0,0.0002175,2]
[338890319,1727021439613,-500.0,0.0002175,2]
[338890320,1727021439625,-500.0,0.0002175,2]
[338890321,1727021439635,-500.0,0.0002175,2]
[338890322,1727021439769,-500.0,0.0002175,2]
[338890323,1727021439782,-500.0,0.0002175,2]
[338890324,1727021439792,-500.0,0.0002175,2]
[338890325,1727021439802,-500.0,0.0002175,2]
[338890326,1727021439811,-500.0,0.0002175,2]
[338890327,1727021439820,-500.0,0.0002175,2]
[338890328,1727021439830,-500.0,0.0002175,2]
[338890329,1727021439840,-500.0,0.0002175,2]
[338890330,1727021439850,-500.0,0.0002175,2]
[338890331,1727021439859,-48153.64759834,0.00021751,3]
[338890332,1727021439872,-31022.56991211,0.00021751,3]
[338890333,1727021439884,-2000.0,0.00021751,3]
[338890342,1727021441469,-129597.91522555,0.00021751,3]
[338890343,1727021441478,-281.33962809,0.00021753,2]
[338890344,1727021441488,-500.0,0.00021753,2]
[338890345,1727021441498,-500.0,0.00021753,2]
[338890346,1727021441507,-500.0,0.00021753,2]
[338890347,1727021441517,-500.0,0.00021753,2]
[338890348,1727021441526,-500.0,0.00021753,2]
[338890349,1727021441535,-500.0,0.00021753,2]
[338890350,1727021441544,-500.0,0.00021753,2]
[338890351,1727021441553,-218.24199392,0.00021753,2]
[338890352,1727021441563,-496.43948561,0.00021753,2]
[338890353,1727021441572,-500.0,0.00021753,2]
[338890354,1727021441582,-500.0,0.00021753,2]
[338890355,1727021441591,-500.0,0.00021753,2]
[338890356,1727021441600,-160.0,0.00021753,2]
[338890357,1727021441609,-161.34813311,0.00021753,2]
[338890358,1727021441618,-142830.41428967,0.00021754,3]
[338890398,1727022346171,-185.8824663,0.00018646,2]
[338890399,1727022346199,-190.322021,0.00019178,2]
[338890400,1727022346221,-300.0,0.00019342,2]
[338890401,1727022346245,-1473.83014062,0.00019343,2]
[338890402,1727022426105,-180.7817575,0.000193,2]
[338890403,1727022426127,-208.20269007,0.00019342,2]
[338890404,1727022433095,-91.79730993,0.00019342,2]
[338890405,1727022433120,-164.54877497,0.00019342,2]
[338890406,1727022452138,-135.45122503,0.00019342,2]
[338890407,1727022452161,-1512.91933024,0.00019343,2]
[338890410,1727022550121,-180.78175748,0.00019242,2]
[338890411,1727022550145,-300.0,0.00019342,2]
[338890412,1727022550168,-300.0,0.00019342,2]
[338890413,1727022550192,-21913.25052914,0.00019343,2]
[338890414,1727022550216,-500.0,0.000194,2]
[338890415,1727022550238,-500.0,0.000194,2]
[338890416,1727022550262,-1000.0,0.00019948,2]
[338890417,1727022550284,-501.2880644,0.00019948,2]
[338890418,1727022550308,-174.424094,0.00020005,2]
[338890419,1727022550331,-3000.0,0.00020253,2]
[338890420,1727022550352,-3000.0,0.00020261,2]
[338890421,1727022550378,-232.410128,0.00020353,2]
[338890422,1727022550399,-180.78175748,0.00020415,2]
[338890423,1727022550422,-174.424094,0.00020526,2]
[338890424,1727022550444,-3150.0,0.00021,2]
[338890425,1727022550472,-49981.72699312,0.00021,5]
[338890426,1727022550502,-174.424094,0.00021047,2]
[338890427,1727022550525,-420.0,0.00021075,2]
[338890428,1727022550546,-153.0,0.00021252,2]
[338890429,1727022550568,-208.9234097,0.00021288,2]
[338890430,1727022550727,-208.9234097,0.00021288,2]
[338890431,1727022550748,-153.0,0.00021288,2]
[338890432,1727022550769,-153.0,0.00021288,2]
[338890433,1727022550790,-208.9234097,0.00021288,2]
[338890434,1727022550825,-208.9234097,0.00021288,2]
[338890435,1727022550847,-153.0,0.00021288,2]
[338890436,1727022550871,-153.0,0.00021288,2]
[338890437,1727022550892,-208.9234097,0.00021288,2]
[338890438,1727022550914,-153.0,0.00021352,2]
[338890439,1727022550934,-826.21460732,0.00021421,2]
[338890440,1727022550998,2288.84193672,0.00020253,2]
[338890441,1727022563281,158.6,0.00025,120]
[338890442,1727022623642,1164.5775228,0.00020681,2]
[338890491,1727022632005,-195.70785096,0.00021596,2]
[338890492,1727022632015,-500.0,0.00021673,2]
[338890493,1727022632026,-421.66,0.00021676,3]
[338890494,1727022632036,-210.83,0.00021676,3]
[338890495,1727022632046,-632.53,0.00021678,3]
[338890496,1727022632057,-300.0,0.00021685,2]
[338890497,1727022632067,-989.27215104,0.00021686,3]
[338890498,1727022632078,-656.24508876,0.00021686,3]
[338890499,1727022632254,-28.48289832,0.00021686,3]
[338890503,1727022638065,-180.78175748,0.00021573,2]
[338890504,1727022638075,-500.97335701,0.00021673,2]
[338890505,1727022638084,-5101.77624616,0.00021686,3]
[338890506,1727022638122,-32126.33251225,0.00021686,3]
[338890507,1727022638133,-15441.48207107,0.00021686,3]
[338890508,1727022638143,-2909.97441631,0.00021686,3]
[338890509,1727022638152,-500.0,0.00021687,2]
[338890510,1727022638163,-500.0,0.00021687,2]
[338890511,1727022638173,-500.0,0.00021687,2]
[338890512,1727022638182,-500.0,0.00021687,2]
[338890514,1727022638192,-500.0,0.00021687,2]
[338890515,1727022638201,-833.71436536,0.00021687,2]
[338890516,1727022638209,-500.0,0.00021687,2]
[338890517,1727022638219,-500.0,0.00021687,2]
[338890518,1727022638228,-500.0,0.00021687,2]
[338890519,1727022638237,-189.55243368,0.00021687,2]
[338890520,1727022638246,-500.0,0.00021687,2]
[338890521,1727022638256,-500.0,0.00021687,2]
[338890522,1727022638265,-833.71436536,0.00021687,2]
[338890523,1727022638275,-500.0,0.00021687,2]
[338890524,1727022638284,-614.75143606,0.00021687,2]
[338890525,1727022638294,-833.71436536,0.00021687,2]
[338890526,1727022638303,-500.0,0.00021687,2]
[338890527,1727022638313,-500.0,0.00021687,2]
[338890528,1727022638323,-294.7086245,0.00021687,2]
[338890529,1727022638490,-137.12362804,0.00021687,2]
[338890530,1727022638502,-68.16774746,0.00021687,2]
[338890531,1727022638511,-500.0,0.00021687,2]
[338890532,1727022638521,-429.27609411,0.00021687,2]
[338890533,1727022638532,-70.72390589,0.00021687,2]
[338890534,1727022638543,-833.71436536,0.00021687,2]
[338890535,1727022638554,-500.0,0.00021687,2]
[338890536,1727022638563,-531.56390437,0.00021687,2]
[338890537,1727022638573,-500.0,0.00021687,2]
[338890538,1727022638582,-833.71436536,0.00021687,2]
[338890539,1727022638591,-500.0,0.00021687,2]
[338890540,1727022638600,-500.0,0.00021687,2]
[338890541,1727022638610,-200.0,0.00021687,2]
[338890542,1727022638619,-833.71436536,0.00021687,2]
[338890543,1727022638629,-500.0,0.00021687,2]
[338890544,1727022638639,-500.0,0.00021687,2]
[338890545,1727022638648,-833.71436536,0.00021687,2]
[338890546,1727022638658,-500.0,0.00021687,2]
[338890547,1727022638668,-500.0,0.00021687,2]
[338890548,1727022638678,-833.71436536,0.00021687,2]
[338890549,1727022638687,-500.0,0.00021687,2]
[338890550,1727022638696,-500.0,0.00021687,2]
[338890551,1727022638706,-833.71436536,0.00021687,2]
[338890552,1727022638715,-500.0,0.00021687,2]
[338890553,1727022638724,-500.0,0.00021687,2]
[338890554,1727022638733,-550.57864526,0.00021687,2]
[338890555,1727022638742,-833.71436536,0.00021687,2]
[338890556,1727022638751,-500.0,0.00021687,2]
[338890557,1727022638761,-500.0,0.00021687,2]
[338890558,1727022638770,-500.0,0.00021687,2]
[338890559,1727022638780,-833.71436536,0.00021687,2]
[338890560,1727022638789,-500.0,0.00021687,2]
[338890561,1727022638799,-500.0,0.00021687,2]
[338890562,1727022638808,-833.71436536,0.00021687,2]
[338890563,1727022638818,-500.0,0.00021687,2]
[338890564,1727022638828,-833.71436536,0.00021687,2]
[338890565,1727022638837,-500.0,0.00021687,2]
[338890566,1727022638847,-833.71436536,0.00021687,2]
[338890567,1727022638857,-500.0,0.00021687,2]
[338890568,1727022638867,-833.71436536,0.00021687,2]
[338890569,1727022638876,-500.0,0.00021687,2]
[338890570,1727022638886,-833.71436536,0.00021687,2]
[338890571,1727022638900,-500.0,0.00021687,2]
[338890572,1727022638909,-833.71436536,0.00021687,2]
[338890573,1727022638918,-500.0,0.00021687,2]
[338890574,1727022638928,-833.71436536,0.00021687,2]
[338890575,1727022638938,-833.71436536,0.00021687,2]
[338890576,1727022638947,-833.71436536,0.00021687,2]
[338890577,1727022638957,-500.0,0.00021687,2]
[338890578,1727022638967,-833.71436536,0.00021687,2]
[338890579,1727022638977,-833.71436536,0.00021687,2]
[338890580,1727022638987,-833.71436536,0.00021687,2]
[338890581,1727022638996,-833.71436536,0.00021687,2]
[338890582,1727022639006,-833.71436536,0.00021687,2]
[338890583,1727022639015,-833.71436536,0.00021687,2]
[338890584,1727022639024,-833.71436536,0.00021687,2]
[338890585,1727022639034,-833.71436536,0.00021687,2]
[338890586,1727022639044,-833.71436536,0.00021687,2]
[338890587,1727022639052,-833.71436536,0.00021687,2]
[338890588,1727022639062,-833.71436536,0.00021687,2]
[338890589,1727022639071,-833.71436536,0.00021687,2]
[338890590,1727022639080,-833.71436536,0.00021687,2]
[338890591,1727022639090,-833.71436536,0.00021687,2]
[338890592,1727022639099,-833.71436536,0.00021687,2]
[338890593,1727022639109,-833.71436536,0.00021687,2]
[338890594,1727022639119,-833.71436536,0.00021687,2]
[338890595,1727022639129,-833.71436536,0.00021687,2]
[338890596,1727022639138,-833.71436536,0.00021687,2]
[338890597,1727022639148,-833.71436536,0.00021687,2]
[338890598,1727022639158,-833.71436536,0.00021687,2]
[338890599,1727022639168,-833.71436536,0.00021687,2]
[338890600,1727022639177,-833.71436536,0.00021687,2]
[338890601,1727022639186,-833.71436536,0.00021687,2]
[338890602,1727022639196,-833.71436536,0.00021687,2]
[338890603,1727022639207,-833.71436536,0.00021687,2]
[338890604,1727022639218,-342.03832799,0.00021687,2]
[338890614,1727022639920,-685.99515195,0.00021676,2]
[338890615,1727022639930,-491.67603737,0.00021687,2]
[338890616,1727022639942,-833.71436536,0.00021687,2]
[338890617,1727022639952,-833.71436536,0.00021687,2]
[338890618,1727022639961,-514.34654915,0.00021687,2]
[338890619,1727022639977,-319.36781621,0.00021687,2]
[338890620,1727022639987,-8.91489267,0.00021687,2]
[338890621,1727022640003,-824.79947269,0.00021687,2]
[338890622,1727022640013,-833.71436536,0.00021687,2]
[338890625,1727022640024,-833.71436536,0.00021687,2]
[338890627,1727022640035,-833.71436536,0.00021687,2]
[338890629,1727022640045,-833.71436536,0.00021687,2]
[338890631,1727022640056,-833.71436536,0.00021687,2]
[338890633,1727022640065,-160.0,0.00021688,2]
[338890635,1727022640074,-500.0,0.00021688,2]
[338890636,1727022640083,-500.0,0.00021688,2]
[338890637,1727022640092,-281.33962809,0.00021688,2]
[338890638,1727022640101,-500.0,0.00021688,2]
[338890639,1727022640110,-218.24199392,0.00021688,2]
[338890640,1727022640119,-500.0,0.00021688,2]
[338890641,1727022640129,-500.0,0.00021688,2]
[338890642,1727022640138,-500.0,0.00021688,2]
[338890643,1727022640147,-500.0,0.00021688,2]
[338890644,1727022640157,-500.0,0.00021688,2]
[338890645,1727022640166,-500.0,0.00021688,2]
[338890646,1727022640175,-496.43948561,0.00021688,2]
[338890647,1727022640185,-500.0,0.00021688,2]
[338890648,1727022640194,-500.0,0.00021688,2]
[338890649,1727022640203,-250.0,0.00021688,2]
[338890650,1727022640212,-151.0,0.00021688,2]
[338890651,1727022640222,-151.0,0.00021688,2]
[338890652,1727022640313,-266544.30634884,0.00021689,3]
[338890653,1727022640332,-5173.64848916,0.00021689,3]
[338890654,1727022640341,-1147.85151084,0.00021689,3]
[338890661,1727022643033,-2106.33901139,0.00021689,3]
[338890662,1727022643106,-238.89273644,0.00021689,3]
[338890667,1727022645928,-4043.40223517,0.00021689,3]
[338890668,1727022645941,-4239.92954531,0.00021689,3]
[338890669,1727022645984,-756.324146,0.00021689,3]
[338890696,1727023382213,3062.0,0.00025,120]
[338891030,1727023649160,-300.0,0.00020063,2]
[338891031,1727023649183,-300.0,0.00020063,2]
[338891032,1727023649204,-390.0,0.00020063,2]
[338891033,1727023649225,-300.2,0.00020063,2]
[338891034,1727023649248,-6011.2536336,0.00020064,2]
[338891035,1727023649279,-3649.77396015,0.00020064,2]
[338891040,1727023751206,-15238.97240625,0.00020064,2]
[338891041,1727023751231,-3941.2398832,0.0002011,2]
[338891042,1727023751253,-170.8898931,0.0002026,2]
[338891043,1727023751274,-160.0,0.00021,7]
[338891044,1727023751296,-3000.0,0.00021,2]
[338891045,1727023751317,-208.0218078,0.00021,2]
[338891046,1727023751339,-208.9234097,0.00021,2]
[338891047,1727023754534,208.9234097,0.00021,2]
[338891056,1727023832108,-475.85340803,0.00021392,2]
[338891057,1727023832119,-94.83022816,0.00021418,2]
[338891066,1727023838313,-1907.90646647,0.00021418,2]
[338891068,1727023838327,-300.0,0.00021499,2]
[338891071,1727023838341,-3189.44884129,0.000215,2]
[338891074,1727023838839,-811.27262596,0.000215,2]
[338891106,1727023840148,-6114.21536641,0.000215,2]
[338891107,1727023840166,-20807.06247275,0.000215,2]
[338891108,1727023840179,-4177.88826813,0.00021518,2]
[338891109,1727023840189,-702.08639622,0.00021573,2]
[338891110,1727023840199,-1000.0,0.00021581,2]
[338891111,1727023840212,-29343.19819217,0.00021587,3]
[338891112,1727023840222,-303.37,0.0002165,3]
[338891113,1727023840235,-151.69,0.0002165,3]
[338891114,1727023840246,-455.07,0.0002165,3]
[338891115,1727023840258,-225.72932271,0.00021659,2]
[338891116,1727023840268,-300.0,0.00021659,2]
[338891117,1727023840278,-500.0,0.00021659,2]
[338891118,1727023840289,-500.0,0.00021659,2]
[338891120,1727023840299,-500.0,0.00021659,2]
[338891122,1727023840310,-500.0,0.00021659,2]
[338891123,1727023840321,-568.30571512,0.00021659,2]
[338891124,1727023840331,-500.0,0.00021659,2]
[338891125,1727023840342,-500.0,0.00021659,2]
[338891126,1727023840354,-283.39762725,0.00021659,2]
[338891127,1727023840365,-500.0,0.00021659,2]
[338891128,1727023840376,-500.0,0.00021659,2]
[338891129,1727023840387,-500.0,0.00021659,2]
[338891130,1727023840400,-500.0,0.00021659,2]
[338891131,1727023840411,-500.0,0.00021659,2]
[338891132,1727023840422,-500.0,0.00021659,2]
[338891133,1727023840433,-500.0,0.00021659,2]
[338891134,1727023840447,-500.0,0.00021659,2]
[338891135,1727023840459,-500.0,0.00021659,2]
[338891136,1727023840469,-500.0,0.00021659,2]
[338891137,1727023840480,-558.21073434,0.00021659,2]
[338891138,1727023840491,-500.0,0.00021659,2]
[338891139,1727023840501,-500.0,0.00021659,2]
[338891140,1727023840512,-500.0,0.00021659,2]
[338891141,1727023840524,-500.0,0.00021659,2]
[338891142,1727023840536,-500.0,0.00021659,2]
[338891143,1727023840547,-500.0,0.00021659,2]
[338891144,1727023840559,-500.0,0.00021659,2]
[338891145,1727023840570,-500.0,0.00021659,2]
[338891146,1727023840581,-500.0,0.00021659,2]
[338891147,1727023840592,-500.0,0.00021659,2]
[338891148,1727023840603,-500.0,0.00021659,2]
[338891149,1727023840614,-500.0,0.00021659,2]
[338891150,1727023840626,-500.0,0.00021659,2]
[338891151,1727023840637,-500.0,0.00021659,2]
[338891152,1727023840648,-500.0,0.00021659,2]
[338891153,1727023840659,-500.0,0.00021659,2]
[338891154,1727023840669,-500.0,0.00021659,2]
[338891155,1727023840680,-500.0,0.00021659,2]
[338891156,1727023840691,-500.0,0.00021659,2]
[338891157,1727023840704,-500.0,0.00021659,2]
[338891158,1727023840715,-500.0,0.00021659,2]
[338891159,1727023840726,-500.0,0.00021659,2]
[338891160,1727023840736,-500.0,0.00021659,2]
[338891161,1727023840748,-500.0,0.00021659,2]
[338891162,1727023840759,-500.0,0.00021659,2]
[338891163,1727023840888,-75412.2800886,0.0002166,3]
[338891164,1727023840911,-500.0,0.00021661,2]
[338891165,1727023840920,-500.0,0.00021661,2]
[338891166,1727023840929,-281.33962809,0.00021661,2]
[338891167,1727023840938,-500.0,0.00021661,2]
[338891168,1727023840948,-500.0,0.00021661,2]
[338891169,1727023840957,-218.24199392,0.00021661,2]
[338891170,1727023840966,-496.43948561,0.00021661,2]
[338891171,1727023840975,-500.0,0.00021661,2]
[338891172,1727023840984,-500.0,0.00021661,2]